fUSD/lending_fUSD_20250811
["ID","MTS","AMOUNT","RATE_DAILY","PERIOD"]
[378640433,1754937034706,-402.78,0.00016438,2]
[378640434,1754937034715,-753.34,0.00016438,2]
[378640435,1754937034724,-400.0,0.00016438,2]
[378640436,1754937034734,-400.0,0.00016438,2]
[378640437,1754937034743,-400.0,0.00016438,2]
[378640438,1754937034752,-580.72,0.00016438,2]
[378640439,1754937034761,-400.0,0.00016438,2]
[378640440,1754937034770,-846.86,0.00016438,2]
[378640441,1754937034779,-893.81,0.00016438,2]
[378640442,1754937034788,-400.0,0.00016438,2]
[378640443,1754937034797,-463.25,0.00016438,2]
[378640444,1754937034807,-450.18,0.00016438,2]
[378640445,1754937034816,-400.0,0.00016438,2]
[378640446,1754937034825,-1001.51,0.00016438,2]
[378640447,1754937034835,-400.0,0.00016438,2]
[378640448,1754937034844,-755.94,0.00016438,2]
[378640449,1754937034854,-400.0,0.00016438,2]
[378640450,1754937034863,-400.0,0.00016438,2]
[378640451,1754937034872,-400.0,0.00016438,2]
[378640452,1754937034881,-1077.59,0.00016438,2]
[378640453,1754937034897,-461.05,0.00016438,2]
[378640454,1754937034910,-700.59,0.00016438,2]
[378640455,1754937034919,-400.0,0.00016438,2]
[378640456,1754937034929,-697.32,0.00016438,2]
[378640457,1754937035271,-612.94,0.00016438,2]
[378640458,1754937035281,-400.0,0.00016438,2]
[378640459,1754937035290,-686.5,0.00016438,2]
[378640460,1754937035300,-579.14,0.00016438,2]
[378640461,1754937035309,-813.22,0.00016438,2]
[378640462,1754937035318,-400.0,0.00016438,2]
[378640463,1754937035328,-400.0,0.00016438,2]
[378640464,1754937035337,-400.0,0.00016438,2]
[378640465,1754937035346,-400.0,0.00016438,2]
[378640466,1754937035355,-400.0,0.00016438,2]
[378640467,1754937035364,-400.0,0.00016438,2]
[378640468,1754937035373,-158.408116,0.00016438,2]
[378640469,1754937035382,-436.22,0.00016438,2]
[378640470,1754937035391,-400.0,0.00016438,2]
[378640471,1754937035400,-400.0,0.00016438,2]
[378640472,1754937035409,-400.0,0.00016438,2]
[378640473,1754937035422,-793.6,0.00016438,2]
[378640474,1754937035432,-400.0,0.00016438,2]
[378640475,1754937035441,-564.095329,0.00016438,2]
[378640476,1754937035450,-925.634198,0.00016438,2]
[378640477,1754937035460,-1951.98,0.00016438,2]
[378640478,1754937035469,-400.0,0.00016438,2]
[378640479,1754937035479,-536.17,0.00016438,2]
[378640480,1754937035488,-703.4,0.00016438,2]
[378640481,1754937035499,-400.0,0.00016438,2]
[378640482,1754937035508,-400.0,0.00016438,2]
[378640483,1754937035518,-245.72190473,0.00016438,2]
[378640484,1754937035527,-409.54,0.00016438,2]
[378640485,1754937035536,-400.0,0.00016438,2]
[378640486,1754937035546,-400.0,0.00016438,2]
[378640487,1754937035556,-400.0,0.00016438,2]
[378640488,1754937035565,-400.0,0.00016438,2]
[378640489,1754937035575,-400.0,0.00016438,2]
[378640490,1754937035585,-1768.7,0.00016438,2]
[378640491,1754937035594,-1431.18,0.00016438,2]
[378640492,1754937035603,-400.0,0.00016438,2]
[378640493,1754937035612,-400.0,0.00016438,2]
[378640494,1754937035621,-400.0,0.00016438,2]
[378640495,1754937035631,-1025.91,0.00016438,2]
[378640496,1754937035640,-400.0,0.00016438,2]
[378640497,1754937035649,-400.0,0.00016438,2]
[378640498,1754937035658,-400.0,0.00016438,2]
[378640499,1754937035668,-572.67,0.00016438,2]
[378640500,1754937035677,-981.649611,0.00016438,2]
[378640501,1754937035686,-563.1,0.00016438,2]
[378640502,1754937035695,-400.0,0.00016438,2]
[378640503,1754937035705,-400.0,0.00016438,2]
[378640504,1754937035716,-400.0,0.00016438,2]
[378640505,1754937035726,-559.74,0.00016438,2]
[378640506,1754937035737,-400.0,0.00016438,2]
[378640507,1754937035746,-1008.19,0.00016438,2]
[378640508,1754937035755,-593.76,0.00016438,2]
[378640509,1754937035764,-400.0,0.00016438,2]
[378640510,1754937035774,-723.39,0.00016438,2]
[378640511,1754937035784,-400.0,0.00016438,2]
[378640512,1754937035793,-400.0,0.00016438,2]
[378640513,1754937035802,-400.0,0.00016438,2]
[378640514,1754937035812,-507.43,0.00016438,2]
[378640515,1754937035822,-400.0,0.00016438,2]
[378640516,1754937035832,-400.0,0.00016438,2]
[378640517,1754937035843,-400.0,0.00016438,2]
[378640518,1754937035852,-400.0,0.00016438,2]
[378640519,1754937035861,-559.11,0.00016438,2]
[378640520,1754937035874,-158.062081,0.00016438,2]
[378640521,1754937035883,-400.0,0.00016438,2]
[378640522,1754937035893,-1086.22,0.00016438,2]
[378640523,1754937035902,-400.0,0.00016438,2]
[378640524,1754937035911,-711.24,0.00016438,2]
[378640525,1754937035921,-400.0,0.00016438,2]
[378640526,1754937035930,-449.6,0.00016438,2]
[378640527,1754937035940,-1973.16,0.00016438,2]
[378640528,1754937035949,-400.0,0.00016438,2]
[378640529,1754937035958,-400.0,0.00016438,2]
[378640530,1754937035968,-964.34,0.00016438,2]
[378640531,1754937035977,-400.0,0.00016438,2]
[378640532,1754937035986,-429.23,0.00016438,2]
[378640533,1754937035996,-400.0,0.00016438,2]
[378640534,1754937036006,-400.0,0.00016438,2]
[378640535,1754937036015,-400.0,0.00016438,2]
[378640536,1754937036026,-581.81,0.00016438,2]
[378640537,1754937036036,-400.0,0.00016438,2]
[378640538,1754937036046,-400.0,0.00016438,2]
[378640539,1754937036056,-400.0,0.00016438,2]
[378640540,1754937036067,-400.0,0.00016438,2]
[378640541,1754937036077,-400.0,0.00016438,2]
[378640542,1754937036087,-1396.98,0.00016438,2]
[378640543,1754937036097,-400.0,0.00016438,2]
[378640544,1754937036108,-400.0,0.00016438,2]
[378640545,1754937036118,-482.89,0.00016438,2]
[378640546,1754937036128,-400.0,0.00016438,2]
[378640547,1754937036137,-779.7,0.00016438,2]
[378640548,1754937036146,-597.5,0.00016438,2]
[378640549,1754937036156,-400.0,0.00016438,2]
[378640550,1754937036166,-400.0,0.00016438,2]
[378640551,1754937036175,-400.0,0.00016438,2]
[378640552,1754937036185,-452.4,0.00016438,2]
[378640553,1754937036194,-663.28,0.00016438,2]
[378640554,1754937036203,-400.0,0.00016438,2]
[378640555,1754937036213,-400.0,0.00016438,2]
[378640556,1754937036222,-898.97,0.00016438,2]
[378640557,1754937036232,-400.0,0.00016438,2]
[378640558,1754937036242,-400.0,0.00016438,2]
[378640559,1754937036251,-331.48944339,0.00016438,2]
[378640560,1754937036310,-137.90055661,0.00016438,2]
[378640561,1754937036319,-400.0,0.00016438,2]
[378640562,1754937036329,-596.2,0.00016438,2]
[378640563,1754937036339,-400.0,0.00016438,2]
[378640564,1754937036348,-466.03,0.00016438,2]
[378640565,1754937036357,-338.14682182,0.00016438,2]
[378640566,1754937036369,-61.85317818,0.00016438,2]
[378640567,1754937036378,-931.32,0.00016438,2]
[378640568,1754937036387,-400.0,0.00016438,2]
[378640569,1754937036397,-421.27,0.00016438,2]
[378640570,1754937036407,-423.04,0.00016438,2]
[378640571,1754937036418,-400.0,0.00016438,2]
[378640572,1754937036430,-400.0,0.00016438,2]
[378640573,1754937036440,-400.0,0.00016438,2]
[378640574,1754937036449,-674.3,0.00016438,2]
[378640575,1754937036458,-1178.33,0.00016438,2]
[378640576,1754937036469,-400.0,0.00016438,2]
[378640577,1754937036479,-445.02,0.00016438,2]
[378640578,1754937036489,-400.0,0.00016438,2]
[378640579,1754937036499,-793.34,0.00016438,2]
[378640580,1754937036510,-1682.38,0.00016438,2]
[378640581,1754937036519,-71.01595502,0.00016438,2]
[378640582,1754937036531,-433.72404498,0.00016438,2]
[378640583,1754937036540,-448.39,0.00016438,2]
[378640584,1754937036550,-400.0,0.00016438,2]
[378640585,1754937036560,-578.93,0.00016438,2]
[378640586,1754937036569,-400.0,0.00016438,2]
[378640587,1754937036579,-593.04,0.00016438,2]
[378640588,1754937036589,-400.0,0.00016438,2]
[378640589,1754937036599,-163.12610373,0.00016438,2]
[378640593,1754937038555,-563.97389627,0.00016438,2]
[378640594,1754937038564,-400.0,0.00016438,2]
[378640595,1754937038574,-400.0,0.00016438,2]
[378640596,1754937038583,-400.0,0.00016438,2]
[378640597,1754937038593,-279.92610373,0.00016438,2]
[378640598,1754937038604,-129.47389627,0.00016438,2]
[378640599,1754937038614,-905.16,0.00016438,2]
[378640600,1754937038623,-128.76299554,0.00016438,2]
[378640601,1754937038634,-271.23700446,0.00016438,2]
[378640602,1754937038644,-400.0,0.00016438,2]
[378640603,1754937038653,-652.18,0.00016438,2]
[378640604,1754937038662,-8013.38299555,0.00016438,2]
[378640605,1754937038673,-767.54511471,0.00016438,2]
[378640606,1754937038684,-973.61188974,0.00016438,2]
[378640607,1754937038693,-224.09682958,0.00016438,2]
[378640608,1754937038715,-186.64317042,0.00016438,2]
[378640609,1754937038727,-120.12906536,0.00016438,2]
[378640610,1754937038742,-698.14093464,0.00016438,2]
[378640611,1754937038754,-570.72,0.00016438,2]
[378640612,1754937038766,-400.0,0.00016438,2]
[378640613,1754937038776,-530.26,0.00016438,2]
[378640614,1754937038786,-85.54772381,0.00016438,2]
[378640615,1754937038799,-522.72227619,0.00016438,2]
[378640616,1754937038810,-44.63767895,0.00016438,2]
[378640617,1754937038832,-389.95387547,0.00016438,2]
[378640618,1754937038847,-11.26844558,0.00016438,2]
[378640619,1754937038858,-400.0,0.00016438,2]
[378640620,1754937038870,-400.0,0.00016438,2]
[378640621,1754937038882,-871.87,0.00016438,2]
[378640622,1754937038894,-873.43,0.00016438,2]
[378640623,1754937038905,-502.32,0.00016438,2]
[378640624,1754937038916,-400.0,0.00016438,2]
[378640625,1754937038927,-616.91,0.00016438,2]
[378640626,1754937038938,-553.01,0.00016438,2]
[378640627,1754937038949,-400.0,0.00016438,2]
[378640628,1754937038959,-451.09,0.00016438,2]
[378640629,1754937038969,-297.80387494,0.00016438,2]
[378640630,1754937039009,-234.29612506,0.00016438,2]
[378640631,1754937039020,-1810.83,0.00016438,2]
[378640632,1754937039031,-400.0,0.00016438,2]
[378640633,1754937039042,-732.61,0.00016438,2]
[378640634,1754937039053,-1044.68,0.00016438,2]
[378640635,1754937039064,-733.78,0.00016438,2]
[378640636,1754937039076,-1249.48,0.00016438,2]
[378640637,1754937039087,-426.64,0.00016438,2]
[378640638,1754937039098,-400.0,0.00016438,2]
[378640639,1754937039110,-580.6,0.00016438,2]
[378640640,1754937039122,-400.0,0.00016438,2]
[378640641,1754937039133,-456.39,0.00016438,2]
[378640642,1754937039144,-400.0,0.00016438,2]
[378640643,1754937039155,-512.26,0.00016438,2]
[378640644,1754937039167,-872.34,0.00016438,2]
[378640645,1754937039178,-400.0,0.00016438,2]
[378640646,1754937039189,-1059.38,0.00016438,2]
[378640647,1754937039200,-532.67,0.00016438,2]
[378640648,1754937039212,-400.0,0.00016438,2]
[378640649,1754937039222,-1082.29,0.00016438,2]
[378640650,1754937039234,-716.54,0.00016438,2]
[378640651,1754937039245,-969.22,0.00016438,2]
[378640652,1754937039256,-3542.43,0.00016438,2]
[378640653,1754937039267,-739.87,0.00016438,2]
[378640654,1754937039278,-483.94,0.00016438,2]
[378640655,1754937039289,-400.0,0.00016438,2]
[378640656,1754937039301,-796.64,0.00016438,2]
[378640657,1754937039311,-400.0,0.00016438,2]
[378640658,1754937039322,-1251.63,0.00016438,2]
[378640659,1754937039333,-1036.65,0.00016438,2]
[378640660,1754937039344,-423.93,0.00016438,2]
[378640661,1754937039355,-526.93,0.00016438,2]
[378640662,1754937039366,-459.93,0.00016438,2]
[378640663,1754937039375,-846.8,0.00016438,2]
[378640664,1754937039386,-400.0,0.00016438,2]
[378640665,1754937039396,-912.32,0.00016438,2]
[378640666,1754937039406,-634.59,0.00016438,2]
[378640667,1754937039419,-458.38,0.00016438,2]
[378640668,1754937039431,-400.0,0.00016438,2]
[378640669,1754937039444,-542.62,0.00016438,2]
[378640670,1754937039454,-1540.0,0.00016438,2]
[378640671,1754937039466,-1470.47,0.00016438,2]
[378640672,1754937039477,-410.89,0.00016438,2]
[378640673,1754937039487,-1177.86,0.00016438,2]
[378640674,1754937039497,-2141.35,0.00016438,2]
[378640675,1754937039508,-524.6,0.00016438,2]
[378640676,1754937039518,-8511.07,0.00016438,2]
[378640677,1754937039530,-623.48,0.00016438,2]
[378640678,1754937039541,-695.11,0.00016438,2]
[378640679,1754937039552,-771.36,0.00016438,2]
[378640680,1754937039563,-290.88448126,0.00016438,2]
[378640681,1754937039577,-498.75551874,0.00016438,2]
[378640682,1754937039586,-450.6,0.00016438,2]
[378640683,1754937039597,-794.89,0.00016438,2]
[378640684,1754937039609,-498.32,0.00016438,2]
[378640685,1754937039626,-400.0,0.00016438,2]
[378640686,1754937039636,-2041.2,0.00016438,2]
[378640688,1754937039647,-614.86013764,0.00016438,2]
[378640690,1754937039659,-881.39986236,0.00016438,2]
[378640693,1754937039671,-544.83,0.00016438,2]
[378640695,1754937039681,-400.0,0.00016438,2]
[378640697,1754937039692,-400.0,0.00016438,2]
[378640699,1754937039703,-799.76,0.00016438,2]
[378640701,1754937039714,-590.53,0.00016438,2]
[378640703,1754937039725,-400.0,0.00016438,2]
[378640705,1754937039735,-1053.15,0.00016438,2]
[378640708,1754937039746,-1044.43,0.00016438,2]
[378640710,1754937039757,-400.0,0.00016438,2]
[378640712,1754937039768,-400.0,0.00016438,2]
[378640714,1754937039779,-456.89,0.00016438,2]
[378640716,1754937039789,-1190.89,0.00016438,2]
[378640718,1754937039799,-444.61,0.00016438,2]
[378640720,1754937039810,-400.0,0.00016438,2]
[378640723,1754937039821,-1483.34,0.00016438,2]
[378640725,1754937039831,-765.96,0.00016438,2]
[378640727,1754937039842,-400.0,0.00016438,2]
[378640729,1754937039852,-694.78,0.00016438,2]
[378640731,1754937039862,-569.04,0.00016438,2]
[378640733,1754937039873,-782.41,0.00016438,2]
[378640736,1754937039884,-644.95,0.00016438,2]
[378640738,1754937039894,-496.42,0.00016438,2]
[378640740,1754937039905,-404.08,0.00016438,2]
[378640742,1754937039915,-518.84,0.00016438,2]
[378640744,1754937039926,-459.66,0.00016438,2]
[378640746,1754937039937,-400.0,0.00016438,2]
[378640749,1754937039950,-587.86,0.00016438,2]
[378640751,1754937039960,-400.0,0.00016438,2]
[378640753,1754937039971,-1356.34,0.00016438,2]
[378640755,1754937039982,-400.0,0.00016438,2]
[378640757,1754937039992,-400.0,0.00016438,2]
[378640759,1754937040003,-1606.9,0.00016438,2]
[378640763,1754937040013,-649.64,0.00016438,2]
[378640765,1754937040024,-1352.13,0.00016438,2]
[378640767,1754937040034,-157.29525814,0.00016438,2]
[378640769,1754937040048,-421.73474186,0.00016438,2]
[378640771,1754937040058,-703.49,0.00016438,2]
[378640774,1754937040070,-400.0,0.00016438,2]
[378640776,1754937040080,-634.57,0.00016438,2]
[378640779,1754937040096,-3258.72,0.00016438,2]
[378640781,1754937040107,-2144.71,0.00016438,2]
[378640783,1754937040119,-863.84,0.00016438,2]
[378640785,1754937040131,-400.0,0.00016438,2]
[378640788,1754937040142,-1120.97,0.00016438,2]
[378640790,1754937040155,-1096.33,0.00016438,2]
[378640792,1754937040168,-400.0,0.00016438,2]
[378640794,1754937040179,-32.48245603,0.00016438,2]
[378640797,1754937040193,-628.73244732,0.00016438,2]
[378640801,1754937040218,-103.15509665,0.00016438,2]
[378640803,1754937040229,-400.0,0.00016438,2]
[378640805,1754937040240,-400.0,0.00016438,2]
[378640807,1754937040251,-1871.95,0.00016438,2]
[378640809,1754937040262,-1818.7,0.00016438,2]
[378640812,1754937040274,-400.0,0.00016438,2]
[378640814,1754937040285,-400.0,0.00016438,2]
[378640816,1754937040296,-432.61,0.00016438,2]
[378640818,1754937040307,-400.0,0.00016438,2]
[378640820,1754937040318,-621.42,0.00016438,2]
[378640822,1754937040329,-680.48,0.00016438,2]
[378640825,1754937040339,-1199.91,0.00016438,2]
[378640827,1754937040350,-819.54,0.00016438,2]
[378640829,1754937040361,-537.53,0.00016438,2]
[378640831,1754937040372,-708.79590205,0.00016438,2]
[378640834,1754937040386,-239.69409795,0.00016438,2]
[378640836,1754937040397,-729.95,0.00016438,2]
[378640838,1754937040408,-400.0,0.00016438,2]
[378640840,1754937040421,-725.88,0.00016438,2]
[378640842,1754937040432,-400.0,0.00016438,2]
[378640844,1754937040443,-702.33,0.00016438,2]
[378640847,1754937040454,-400.0,0.00016438,2]
[378640849,1754937040466,-2777.25639992,0.00016438,2]
[378640851,1754937040480,-3411.90360008,0.00016438,2]
[378640854,1754937040491,-670.43,0.00016438,2]
[378640856,1754937040502,-938.79,0.00016438,2]
[378640858,1754937040513,-427.55,0.00016438,2]
[378640860,1754937040524,-588.29,0.00016438,2]
[378640862,1754937040534,-470.07,0.00016438,2]
[378640864,1754937040545,-533.31,0.00016438,2]
[378640866,1754937040555,-400.0,0.00016438,2]
[378640868,1754937040566,-1130.42,0.00016438,2]
[378640870,1754937040577,-1218.4,0.00016438,2]
[378640873,1754937040588,-707.92,0.00016438,2]
[378640876,1754937040599,-4200.6,0.00016438,2]
[378640878,1754937040609,-668.84,0.00016438,2]
[378640880,1754937040619,-400.0,0.00016438,2]
[378640882,1754937040635,-1089.8,0.00016438,2]
[378640885,1754937040646,-400.0,0.00016438,2]
[378640887,1754937040657,-742.57,0.00016438,2]
[378640889,1754937040668,-400.0,0.00016438,2]
[378640891,1754937040679,-718.42,0.00016438,2]
[378640893,1754937040690,-490.83148776,0.00016438,2]
[378640896,1754937040707,-520.39851224,0.00016438,2]
[378640898,1754937040718,-134.60148794,0.00016438,2]
[378640901,1754937040730,-265.39851206,0.00016438,2]
[378640903,1754937040740,-590.45217111,0.00016438,2]
[378640935,1754937041027,-2280.61782889,0.00016438,2]
[378640937,1754937041038,-589.38,0.00016438,2]
[378640939,1754937041048,-400.0,0.00016438,2]
[378640941,1754937041059,-526.57,0.00016438,2]
[378640943,1754937041069,-533.77,0.00016438,2]
[378640945,1754937041079,-400.0,0.00016438,2]
[378640947,1754937041089,-473.78,0.00016438,2]
[378640949,1754937041100,-400.0,0.00016438,2]
[378640951,1754937041110,-477.61480947,0.00016438,2]
[378640954,1754937041131,-1059.80161734,0.00016438,2]
[378640962,1754937041193,-1055.70357319,0.00016438,2]
[378640964,1754937041204,-400.0,0.00016438,2]
[378640966,1754937041214,-695.24,0.00016438,2]
[378640968,1754937041225,-824.13,0.00016438,2]
[378640970,1754937041236,-746.71,0.00016438,2]
[378640973,1754937041247,-400.0,0.00016438,2]
[378640975,1754937041258,-400.0,0.00016438,2]
[378640977,1754937041268,-2190.38,0.00016438,2]
[378640979,1754937041278,-984.18,0.00016438,2]
[378640981,1754937041289,-400.0,0.00016438,2]
[378640983,1754937041300,-600.0,0.00016438,2]
[378640986,1754937041310,-600.0,0.00016438,2]
[378640988,1754937041320,-600.0,0.00016438,2]
[378640990,1754937041331,-600.0,0.00016438,2]
[378640992,1754937041341,-600.0,0.00016438,2]
[378640994,1754937041352,-600.0,0.00016438,2]
[378640996,1754937041362,-600.0,0.00016438,2]
[378640998,1754937041372,-600.0,0.00016438,2]
[378641000,1754937041383,-156.30143435,0.00016438,2]
[378641003,1754937041393,-400.0,0.00016446,2]
[378641005,1754937041403,-500.0,0.00016483,2]
[378641007,1754937041414,-348.81,0.00016509,2]
[378641009,1754937041429,-500.0,0.00016538,2]
[378641011,1754937041440,-500.0,0.00016548,2]
[378641013,1754937041451,-3864.49351661,0.00016551,2]
[378641016,1754937041462,-2349.33940285,0.00016551,2]
[378641019,1754937041481,-817.38986586,0.00016551,2]
[378641021,1754937041491,-247.0,0.0001659,2]
[378641023,1754937041502,-500.0,0.00016593,2]
[378641025,1754937041514,-10000.0,0.00016612,2]
[378641027,1754937041525,-302.0,0.00016676,2]
[378641029,1754937041535,-211.73953792,0.00016681,2]
[378641032,1754937041546,-457.87080987,0.00016681,2]
[378641034,1754937041556,-842.86497659,0.00016681,2]
[378641036,1754937041567,-900.0,0.000167,6]
[378641038,1754937041579,-797.4,0.000167,2]
[378641124,1754937042376,-797.4,0.000167,2]
[378641128,1754937042398,-400.0,0.00016711,2]
[378641131,1754937042419,-400.0,0.00016711,2]
[378641133,1754937042431,-400.0,0.00016711,2]
[378641135,1754937042440,-400.0,0.00016711,2]
[378641137,1754937042450,-400.0,0.00016711,2]
[378641139,1754937042459,-400.0,0.00016711,2]
[378641141,1754937042470,-400.0,0.00016711,2]
[378641143,1754937042480,-400.0,0.00016711,2]
[378641145,1754937042490,-400.0,0.00016711,2]
[378641147,1754937042501,-400.0,0.00016711,2]
[378641149,1754937042510,-415.42,0.00016711,2]
[378641151,1754937042521,-400.0,0.00016711,2]
[378641153,1754937042530,-400.0,0.00016711,2]
[378641155,1754937042540,-400.0,0.00016711,2]
[378641157,1754937042549,-400.0,0.00016711,2]
[378641159,1754937042558,-400.0,0.00016711,2]
[378641161,1754937042568,-495.58,0.00016711,2]
[378641162,1754937042577,-400.0,0.00016711,2]
[378641163,1754937042588,-400.0,0.00016711,2]
[378641164,1754937042597,-400.0,0.00016711,2]
[378641165,1754937042607,-400.0,0.00016711,2]
[378641166,1754937042616,-400.0,0.00016711,2]
[378641167,1754937042625,-460.08,0.00016711,2]
[378641168,1754937042635,-400.0,0.00016711,2]
[378641169,1754937042644,-400.0,0.00016711,2]
[378641170,1754937042654,-400.0,0.00016711,2]
[378641171,1754937042663,-432.38,0.00016711,2]
[378641172,1754937042673,-400.0,0.00016711,2]
[378641173,1754937042683,-400.0,0.00016711,2]
[378641174,1754937042694,-400.0,0.00016711,2]
[378641175,1754937042704,-400.0,0.00016711,2]
[378641176,1754937042713,-400.0,0.00016711,2]
[378641177,1754937042724,-400.0,0.00016711,2]
[378641178,1754937042734,-400.0,0.00016711,2]
[378641179,1754937042744,-280.58561616,0.00016711,2]
[378641181,1754937042753,-400.0,0.00016711,2]
[378641183,1754937042763,-400.0,0.00016711,2]
[378641185,1754937042772,-400.0,0.00016711,2]
[378641187,1754937042782,-400.0,0.00016711,2]
[378641189,1754937042793,-400.0,0.00016711,2]
[378641191,1754937042802,-400.0,0.00016711,2]
[378641193,1754937042812,-400.0,0.00016711,2]
[378641195,1754937042822,-400.0,0.00016711,2]
[378641197,1754937042832,-400.0,0.00016711,2]
[378641199,1754937042844,-400.0,0.00016711,2]
[378641201,1754937042854,-400.0,0.00016711,2]
[378641203,1754937042865,-400.0,0.00016711,2]
[378641205,1754937042875,-400.0,0.00016711,2]
[378641207,1754937042885,-400.0,0.00016711,2]
[378641209,1754937042895,-400.0,0.00016711,2]
[378641211,1754937042904,-400.0,0.00016711,2]
[378641213,1754937042914,-400.0,0.00016711,2]
[378641215,1754937042923,-400.0,0.00016711,2]
[378641217,1754937042932,-422.51,0.00016711,2]
[378641219,1754937042941,-400.0,0.00016711,2]
[378641221,1754937042950,-400.0,0.00016711,2]
[378641223,1754937042959,-400.0,0.00016711,2]
[378641225,1754937042969,-400.0,0.00016711,2]
[378641227,1754937042978,-400.0,0.00016711,2]
[378641229,1754937042988,-400.0,0.00016711,2]
[378641231,1754937042997,-400.0,0.00016711,2]
[378641233,1754937043007,-400.0,0.00016711,2]
[378641235,1754937043016,-400.0,0.00016711,2]
[378641237,1754937043025,-400.0,0.00016711,2]
[378641239,1754937043035,-400.0,0.00016711,2]
[378641241,1754937043044,-400.0,0.00016711,2]
[378641243,1754937043053,-400.0,0.00016711,2]
[378641245,1754937043063,-263.76139252,0.00016711,2]
[378641247,1754937043072,-400.0,0.00016711,2]
[378641249,1754937043082,-400.0,0.00016711,2]
[378641251,1754937043094,-400.0,0.00016711,2]
[378641253,1754937043104,-400.0,0.00016711,2]
[378641255,1754937043113,-400.0,0.00016711,2]
[378641256,1754937043123,-400.0,0.00016711,2]
[378641258,1754937043132,-400.0,0.00016711,2]
[378641260,1754937043142,-400.0,0.00016711,2]
[378641263,1754937043152,-400.0,0.00016711,2]
[378641265,1754937043162,-400.0,0.00016711,2]
[378641267,1754937043171,-400.0,0.00016711,2]
[378641269,1754937043180,-400.0,0.00016711,2]
[378641271,1754937043190,-400.0,0.00016711,2]
[378641273,1754937043200,-400.0,0.00016711,2]
[378641275,1754937043209,-400.0,0.00016711,2]
[378641277,1754937043218,-400.0,0.00016711,2]
[378641279,1754937043228,-444.98,0.00016711,2]
[378641281,1754937043237,-400.0,0.00016711,2]
[378641283,1754937043247,-400.0,0.00016711,2]
[378641285,1754937043256,-335.35028293,0.00016711,2]
[378641308,1754937043477,-64.64971707,0.00016711,2]
[378641310,1754937043486,-400.0,0.00016711,2]
[378641312,1754937043496,-400.0,0.00016711,2]
[378641314,1754937043506,-239.29399841,0.00016711,2]
[378641316,1754937043515,-400.0,0.00016711,2]
[378641318,1754937043525,-400.0,0.00016711,2]
[378641320,1754937043534,-261.22082694,0.00016711,2]
[378641322,1754937043543,-400.0,0.00016711,2]
[378641324,1754937043553,-400.0,0.00016711,2]
[378641326,1754937043563,-400.0,0.00016711,2]
[378641328,1754937043573,-400.0,0.00016711,2]
[378641330,1754937043582,-400.0,0.00016711,2]
[378641332,1754937043593,-400.0,0.00016711,2]
[378641334,1754937043604,-381.5421404,0.00016711,2]
[378641336,1754937043615,-18.4578596,0.00016711,2]
[378641338,1754937043625,-394.52931425,0.00016711,2]
[378641341,1754937043636,-8.27004567,0.00016711,2]